bitfinex-derivatives/quotes_BTCF0:USTF0_20260315
["timestamp","ask_amount","ask_price","bid_price","bid_amount"]
[1773611016189,1.23939083,72159.0,72111.0,0.06904343]
[1773611016190,0.06825083,72151.0,72125.0,0.041587]
[1773611016387,0.06825083,72151.0,72126.0,0.29755509]
[1773611016599,0.0014,72153.0,72130.0,0.02560018]
[1773611016804,0.0014,72155.0,72146.0,0.041575]
[1773611017008,0.0014,72155.0,72135.0,0.02560018]
[1773611017009,0.0014,72155.0,72147.0,0.041574]
[1773611017309,0.0014,72158.0,72153.0,0.041571]
[1773611017601,0.0014,72165.0,72155.0,0.04157]
[1773611017792,0.05487149,72170.0,72158.0,0.041568]
[1773611018105,0.0014,72168.0,72156.0,0.04157]
[1773611018305,0.0995306,72178.0,72148.0,0.0014]
[1773611018492,0.0586653,72181.0,72167.0,0.041563]
[1773611018693,0.0586653,72181.0,72165.0,0.041565]
[1773611018694,0.0014,72180.0,72165.0,0.041565]
[1773611018896,0.0014,72179.0,72165.0,0.041565]
[1773611019204,0.0586653,72181.0,72167.0,0.041563]
[1773611019401,0.05834305,72191.0,72168.0,0.05233145]
[1773611019902,0.041549,72193.0,72168.0,0.05233145]
[1773611019903,0.05859748,72192.0,72177.0,0.041558]
[1773611020103,0.05859748,72192.0,72176.0,0.0014]
[1773611020303,0.0014,72196.0,72185.0,0.041553]
[1773611020500,0.0014,72197.0,72185.0,0.041553]
[1773611020715,0.05884138,72182.0,72151.0,0.06806624]
[1773611021003,0.05884138,72171.0,72148.0,0.05233145]
[1773611021397,0.05884138,72167.0,72152.0,0.041572]
[1773611021602,0.05884138,72167.0,72153.0,0.042971]
[1773611022000,0.05884138,72167.0,72153.0,0.041571]
[1773611022409,0.041564,72166.0,72152.0,0.041572]
[1773611022709,0.05859395,72166.0,72152.0,0.041572]
[1773611023094,0.10016195,72159.0,72144.0,0.041576]
[1773611023300,0.05859395,72158.0,72140.0,0.0014]
[1773611023503,0.05859395,72156.0,72140.0,0.0014]
[1773611023812,0.05858061,72148.0,72137.0,0.0014]
[1773611025499,0.041575,72148.0,72137.0,0.0014]
[1773611025815,0.0580396,72147.0,72137.0,0.0014]
[1773611026809,0.0580396,72147.0,72137.0,0.0024]
[1773611027198,0.0580396,72147.0,72137.0,0.001]
[1773611027399,0.0014,72149.0,72137.0,0.04258]
[1773611027608,0.0014,72149.0,72139.0,0.041579]
[1773611028018,0.0014,72149.0,72137.0,0.042581]
[1773611028306,0.0014,72149.0,72137.0,0.041581]
[1773611028895,0.10077061,72149.0,72135.0,0.041582]
[1773611029099,0.05779661,72148.0,72135.0,0.041582]
[1773611029413,0.041575,72148.0,72130.0,0.05373145]
[1773611029801,0.041575,72148.0,72130.0,0.0014]
[1773611030114,0.09974517,72148.0,72130.0,0.0014]
[1773611030315,0.05817017,72144.0,72130.0,0.042985]
[1773611030611,0.05817017,72140.0,72127.0,0.0014]
[1773611030806,0.05817017,72140.0,72127.0,0.041586]
[1773611031202,0.05817017,72140.0,72128.0,0.041586]
[1773611031397,0.05825234,72147.0,72120.0,0.05233145]
[1773611031600,0.05816935,72178.0,72140.0,0.05233145]
[1773611031907,0.05816935,72165.0,72141.0,0.0014]
[1773611032117,0.041567,72162.0,72143.0,0.07580567]
[1773611032303,0.0014,72164.0,72152.0,0.041572]
[1773611032611,0.21797258,72175.0,72147.0,0.07794086]
[1773611032909,0.14471562,72175.0,72149.0,0.07794086]
[1773611033106,0.14471562,72175.0,72151.0,0.07794086]
[1773611033306,0.14471562,72175.0,72161.0,0.041567]
[1773611033499,0.0014,72183.0,72159.0,0.0014]
[1773611033704,0.0014,72182.0,72172.0,0.04156]
[1773611034002,0.0014,72182.0,72165.0,0.0014]
[1773611034197,0.041553,72186.0,72173.0,0.04156]
[1773611034405,0.041552,72188.0,72174.0,0.041559]
[1773611034799,0.041552,72187.0,72174.0,0.041559]
[1773611035412,0.07325696,72186.0,72174.0,0.041559]
[1773611035611,0.041552,72187.0,72174.0,0.041559]
[1773611036202,0.07325696,72188.0,72175.0,0.041559]
[1773611037307,0.07325696,72203.0,72188.0,0.041551]
[1773611037608,0.07325696,72189.0,72156.0,0.16450438]
[1773611037907,0.07325696,72184.0,72172.0,0.04156]
[1773611038215,0.07325696,72182.0,72171.0,0.0014]
[1773611038404,0.07325696,72170.0,72154.0,0.0014]
[1773611038609,0.07325696,72168.0,72152.0,0.0014]
[1773611038812,0.07325696,72168.0,72156.0,0.041569]
[1773611039399,0.07325696,72167.0,72155.0,0.04157]
[1773611039611,0.07325696,72165.0,72153.0,0.042971]
[1773611040207,0.07325696,72165.0,72153.0,0.0014]
[1773611040403,0.07325696,72165.0,72151.0,0.0014]
[1773611040714,0.07325696,72167.0,72134.0,0.0014]
[1773611040915,0.07325696,72154.0,72128.0,0.06723465]
[1773611041115,0.07325696,72154.0,72141.0,0.041578]
[1773611041311,0.041574,72150.0,72120.0,0.06723465]
[1773611041608,0.14711759,72167.0,72129.0,0.041585]
[1773611041609,0.041576,72146.0,72129.0,0.041585]
[1773611041913,0.07325696,72138.0,72123.0,0.041588]
[1773611042105,0.07325696,72138.0,72121.0,0.04299]
[1773611042305,0.041582,72135.0,72122.0,0.3121154]
[1773611042506,0.041582,72135.0,72120.0,0.041591]
[1773611042816,0.0014,72142.0,72121.0,0.07934086]
[1773611042999,0.11483096,72150.0,72122.0,0.0014]
[1773611043201,0.0014,72152.0,72132.0,0.07794086]
[1773611043408,0.0014,72153.0,72141.0,0.041578]
[1773611043609,0.0014,72153.0,72138.0,0.04158]
[1773611044210,0.04157,72155.0,72138.0,0.04158]
[1773611044416,0.041572,72153.0,72138.0,0.04158]
[1773611046114,0.0014,72155.0,72138.0,0.11952086]
[1773611046621,0.041571,72154.0,72138.0,0.11952086]
[1773611047024,0.041571,72154.0,72139.0,0.07794086]
[1773611047224,0.041571,72154.0,72138.0,0.04158]
[1773611047410,0.07465696,72155.0,72136.0,0.0014]
[1773611047609,0.07465696,72155.0,72137.0,0.3120683]
[1773611047822,0.07325696,72155.0,72138.0,0.3120683]
[1773611048024,0.07325696,72155.0,72136.0,0.07934086]
[1773611048225,0.07325696,72161.0,72138.0,0.07794086]
[1773611048415,0.041562,72170.0,72153.0,0.041572]
[1773611048723,0.042958,72177.0,72150.0,0.07794086]
[1773611048924,0.042958,72177.0,72155.0,0.07794086]
[1773611048925,0.041559,72176.0,72155.0,0.07794086]
[1773611049111,0.042959,72175.0,72156.0,0.0014]
[1773611049317,0.07325696,72177.0,72164.0,0.041565]
[1773611049713,0.07325696,72177.0,72156.0,0.07934086]
[1773611049919,0.07325696,72177.0,72162.0,0.041566]
[1773611050120,0.07465696,72177.0,72162.0,0.041566]
[1773611050323,0.07465696,72177.0,72164.0,0.041565]
[1773611050530,0.042956,72180.0,72164.0,0.0014]
[1773611050725,0.07325696,72181.0,72168.0,0.041562]
[1773611050925,0.07325696,72181.0,72164.0,0.0014]
[1773611051127,0.07325696,72186.0,72174.0,0.041559]
[1773611051325,0.07325696,72186.0,72165.0,0.07794086]
[1773611051326,0.07325696,72186.0,72171.0,0.042961]
[1773611051627,0.041551,72189.0,72172.0,0.31191801]
[1773611051827,0.11480796,72190.0,72176.0,0.041558]
[1773611052031,0.041551,72190.0,72176.0,0.041558]
[1773611052227,0.041551,72190.0,72177.0,0.041557]
[1773611052536,0.041549,72193.0,72178.0,0.041557]
[1773611052719,0.041549,72193.0,72172.0,0.07794086]
[1773611052925,0.11480596,72193.0,72178.0,0.0014]
[1773611053732,0.07325696,72193.0,72181.0,0.041555]
[1773611054522,0.07325696,72196.0,72185.0,0.041553]
[1773611055126,0.041554,72184.0,72165.0,0.16450438]
[1773611055332,0.07325696,72183.0,72166.0,0.31330814]
[1773611055521,0.07325696,72183.0,72167.0,0.31330814]
[1773611055724,0.07325696,72183.0,72168.0,0.31190814]
[1773611055924,0.07325696,72183.0,72169.0,0.31190814]
[1773611056224,0.07325696,72183.0,72170.0,0.0014]
[1773611056425,0.041554,72184.0,72171.0,0.0014]
[1773611056629,0.041554,72184.0,72172.0,0.042961]
[1773611056832,0.07325696,72186.0,72173.0,0.04156]
[1773611057033,0.07325696,72184.0,72174.0,0.0014]
[1773611057331,0.11481096,72184.0,72174.0,0.0014]
[1773611057638,0.07325696,72180.0,72167.0,0.0014]
[1773611057932,0.14177828,72200.0,72153.0,0.16450438]
[1773611057933,0.07325696,72177.0,72153.0,0.16450438]
[1773611058136,0.07325696,72177.0,72142.0,0.30534561]
[1773611058137,0.07325696,72171.0,72160.0,0.041567]
[1773611058735,0.07325696,72171.0,72158.0,0.042969]
[1773611058932,0.07325696,72171.0,72159.0,0.041568]
[1773611059134,0.07325696,72171.0,72158.0,0.0014]
[1773611059135,0.07325696,72171.0,72160.0,0.041567]
[1773611059434,0.07325696,72171.0,72160.0,0.042567]
[1773611061540,0.04156,72173.0,72160.0,0.042567]
[1773611061745,0.11481696,72173.0,72160.0,0.042567]
[1773611062245,0.07390035,72172.0,72160.0,0.042567]
[1773611062639,0.07390035,72172.0,72160.0,0.041567]
[1773611062844,0.07390035,72171.0,72160.0,0.001]
[1773611063343,0.0014,72176.0,72154.0,0.0014]
[1773611063344,0.07390035,72175.0,72154.0,0.0014]
[1773611063545,0.07390035,72175.0,72155.0,0.0014]
[1773611063840,0.0014,72176.0,72155.0,0.0014]
[1773611063841,0.041563,72168.0,72155.0,0.04297]
[1773611064039,0.041566,72163.0,72155.0,0.0014]
[1773611064243,0.07390035,72165.0,72145.0,0.041576]
[1773611064435,0.07390035,72156.0,72134.0,0.16450438]
[1773611064635,0.07390035,72152.0,72140.0,0.041579]
[1773611064831,0.07390035,72152.0,72141.0,0.0014]
[1773611065036,0.07390035,72151.0,72139.0,0.041579]
[1773611065246,0.041572,72153.0,72137.0,0.0014]
[1773611065443,0.07390035,72151.0,72139.0,0.041579]
[1773611065644,0.07390035,72150.0,72137.0,0.042981]
[1773611066141,0.07390035,72150.0,72138.0,0.0014]
[1773611066534,0.07390035,72150.0,72119.0,0.20609538]
[1773611066743,0.07390035,72148.0,72136.0,0.041581]
[1773611067740,0.07390035,72148.0,72137.0,0.0024]
[1773611068247,0.07390035,72147.0,72138.0,0.0014]
[1773611068769,0.07390035,72147.0,72139.0,0.0014]
[1773611069053,0.07390035,72157.0,72122.0,0.07434375]
[1773611069353,0.07390035,72146.0,72124.0,0.07434375]
[1773611069548,0.07390035,72146.0,72125.0,0.30830071]
[1773611069748,0.07390035,72144.0,72123.0,0.0014]
[1773611069941,0.07390035,72144.0,72124.0,0.3082866]
[1773611070142,0.07390035,72144.0,72123.0,0.07574375]
[1773611070349,0.07390035,72144.0,72124.0,0.3096803]
[1773611070640,0.041579,72141.0,72129.0,0.041585]
[1773611070844,0.07390035,72140.0,72129.0,0.041585]
[1773611071041,0.041579,72141.0,72129.0,0.041585]
[1773611071250,0.04158,72140.0,72124.0,0.0014]
[1773611071447,0.07530035,72150.0,72124.0,0.07574375]
[1773611071648,0.041575,72147.0,72134.0,0.041582]
[1773611071852,0.07390035,72144.0,72133.0,0.0014]
[1773611072053,0.07390035,72143.0,72131.0,0.0014]
[1773611072246,0.07390035,72143.0,72131.0,0.042984]
[1773611072755,0.07390035,72147.0,72131.0,0.0014]
[1773611073054,0.07390035,72149.0,72131.0,0.0014]
[1773611073251,0.07390035,72149.0,72139.0,0.041579]
[1773611073451,0.07390035,72153.0,72131.0,0.07434375]
[1773611073651,0.07390035,72166.0,72155.0,0.04157]
[1773611073853,0.04155,72191.0,72164.0,0.041565]
[1773611073854,0.0014,72174.0,72164.0,0.041565]
[1773611074038,0.11545935,72176.0,72164.0,0.041565]
[1773611074244,0.11545935,72176.0,72156.0,0.0014]
[1773611074446,0.041557,72179.0,72157.0,0.07434375]
[1773611074753,0.07390035,72188.0,72162.0,0.041566]
[1773611074950,0.07390035,72186.0,72162.0,0.041566]
[1773611075158,0.07390035,72172.0,72156.0,0.0014]
[1773611076151,0.11546135,72172.0,72156.0,0.0014]
[1773611076456,0.041564,72166.0,72154.0,0.0014]
[1773611076754,0.07390035,72165.0,72156.0,0.04157]
[1773611077144,0.041565,72164.0,72153.0,0.0014]
[1773611077343,0.11546535,72164.0,72153.0,0.0014]
[1773611077549,0.041566,72163.0,72153.0,0.0014]
[1773611077748,0.07390035,72162.0,72135.0,0.16450438]
[1773611077954,0.07390035,72156.0,72144.0,0.041576]
[1773611078253,0.0014,72169.0,72144.0,0.041576]
[1773611078254,0.041568,72159.0,72146.0,0.041575]
[1773611078455,0.07390035,72157.0,72146.0,0.041575]
[1773611078760,0.07390035,72156.0,72145.0,0.041576]
[1773611078966,0.07390035,72156.0,72144.0,0.041577]
[1773611079256,0.07390035,72156.0,72145.0,0.0014]
[1773611079554,0.07390035,72162.0,72131.0,0.16450438]
[1773611079747,0.07390035,72147.0,72136.0,0.041581]
[1773611079947,0.07390035,72146.0,72137.0,0.0014]
[1773611080557,0.07390035,72146.0,72137.0,0.04298]
[1773611081643,0.07390035,72146.0,72137.0,0.04398]
[1773611083065,0.07390035,72146.0,72137.0,0.04298]
[1773611083373,0.07390035,72146.0,72137.0,0.04398]
[1773611083876,0.07390035,72146.0,72137.0,0.04298]
[1773611084079,0.07390035,72146.0,72137.0,0.04398]
[1773611084377,0.07390035,72146.0,72137.0,0.0024]
[1773611084581,0.07390035,72146.0,72137.0,0.001]
[1773611084880,0.07390035,72146.0,72137.0,0.0024]
[1773611085067,0.041577,72144.0,72118.0,0.20609638]
[1773611085268,0.07390035,72142.0,72132.0,0.041583]
[1773611085476,0.07390035,72142.0,72134.0,0.041582]
[1773611085777,0.07390035,72142.0,72135.0,0.041582]
[1773611086070,0.07390035,72142.0,72119.0,0.07434375]
[1773611086071,0.07390035,72142.0,72136.0,0.041581]
[1773611086278,0.05,72204.0,72134.0,0.0014]
[1773611086279,0.041567,72162.0,72149.0,0.041574]
[1773611086468,0.041567,72161.0,72149.0,0.041574]
[1773611086883,0.07530035,72166.0,72154.0,0.041571]
[1773611087468,0.07530035,72166.0,72156.0,0.04157]
[1773611087777,0.07530035,72166.0,72154.0,0.041571]
[1773611088273,0.041563,72169.0,72150.0,0.07434375]
[1773611088575,0.07390035,72173.0,72145.0,0.07434375]
[1773611088873,0.041547,72197.0,72159.0,0.07434375]
[1773611088874,0.2127204,72180.0,72159.0,0.07434375]
[1773611089077,0.041557,72178.0,72166.0,0.041564]
[1773611089270,0.0014,72179.0,72163.0,0.0014]
[1773611089479,0.041558,72177.0,72164.0,0.041565]
[1773611089670,0.041547,72197.0,72166.0,0.041564]
[1773611089671,0.07390035,72182.0,72166.0,0.041564]
[1773611089870,0.041557,72178.0,72166.0,0.041564]
[1773611090072,0.041556,72181.0,72167.0,0.041563]
[1773611090376,0.0014,72182.0,72169.0,0.041562]
[1773611090775,0.042955,72182.0,72167.0,0.041563]
[1773611090982,0.041556,72181.0,72167.0,0.041563]
[1773611092072,0.041556,72181.0,72168.0,0.041562]
[1773611092073,0.07395325,72180.0,72168.0,0.041562]
[1773611092573,0.11549624,72179.0,72152.0,0.16450438]
[1773611092773,0.11549624,72179.0,72117.0,0.50657452]
[1773611092774,0.07393924,72167.0,72155.0,0.04157]
[1773611093078,0.07393924,72166.0,72154.0,0.042971]
[1773611093271,0.07393924,72166.0,72155.0,0.34621043]
[1773611093466,0.07393924,72166.0,72155.0,0.04157]
[1773611094684,0.07393924,72166.0,72157.0,0.041569]
[1773611095574,0.07393924,72166.0,72155.0,0.04157]
[1773611095780,0.07393924,72164.0,72152.0,0.042972]
[1773611095975,0.07393924,72164.0,72154.0,0.041571]
[1773611096278,0.11550224,72169.0,72155.0,0.04157]
[1773611096474,0.07393924,72164.0,72151.0,0.042973]
[1773611096679,0.07393924,72163.0,72151.0,0.042973]
[1773611096878,0.07393924,72163.0,72151.0,0.0014]
[1773611097172,0.07393924,72160.0,72148.0,0.0014]
[1773611097373,0.041569,72158.0,72146.0,0.0014]
[1773611097576,0.0014,72162.0,72146.0,0.0014]
[1773611097773,0.0014,72170.0,72150.0,0.08038109]
[1773611097972,0.0014,72173.0,72161.0,0.041567]
[1773611098182,0.0014,72173.0,72158.0,0.0014]
[1773611098378,0.041562,72171.0,72159.0,0.041568]
[1773611099278,0.041562,72171.0,72158.0,0.0014]
[1773611099485,0.0014,72173.0,72158.0,0.0014]
[1773611099986,0.11550024,72172.0,72159.0,0.041568]
[1773611100287,0.04156,72174.0,72161.0,0.041567]
[1773611100787,0.04156,72174.0,72162.0,0.041566]
[1773611101176,0.07393924,72176.0,72164.0,0.041565]
[1773611101488,0.07533924,72188.0,72172.0,0.04156]
[1773611101688,0.07533924,72187.0,72172.0,0.04156]
[1773611101888,0.11549324,72184.0,72168.0,0.0014]
[1773611102077,0.0014,72183.0,72168.0,0.0014]
[1773611102272,0.11549324,72184.0,72168.0,0.0014]
[1773611102273,0.07393924,72184.0,72172.0,0.04156]
[1773611102478,0.11689324,72184.0,72172.0,0.04156]
[1773611102673,0.041553,72185.0,72172.0,0.04156]
[1773611102888,0.042953,72185.0,72172.0,0.04156]
[1773611103188,0.0014,72185.0,72174.0,0.041559]
[1773611103389,0.0014,72185.0,72176.0,0.041558]
[1773611103790,0.0014,72185.0,72175.0,0.0014]
[1773611104188,0.07393924,72192.0,72179.0,0.041556]
[1773611104390,0.042949,72193.0,72175.0,0.0014]
[1773611104391,0.0014,72193.0,72181.0,0.041555]
[1773611104593,0.07393924,72192.0,72181.0,0.041555]
[1773611104789,0.07393924,72192.0,72175.0,0.0014]
[1773611104991,0.0014,72193.0,72183.0,0.041554]
[1773611105292,0.041547,72196.0,72175.0,0.0014]
[1773611105293,0.07393924,72195.0,72175.0,0.0014]
[1773611105496,0.0014,72196.0,72183.0,0.041554]
[1773611105686,0.001,72193.0,72183.0,0.041554]
[1773611106286,0.001,72195.0,72183.0,0.041554]
[1773611106477,0.07393924,72192.0,72183.0,0.0014]
[1773611106684,0.11548824,72192.0,72183.0,0.0014]
[1773611107079,0.001,72195.0,72183.0,0.0014]
[1773611107290,0.001,72195.0,72184.0,0.041554]
[1773611107497,0.001,72195.0,72183.0,0.0014]
[1773611107498,0.001,72195.0,72187.0,0.041552]
[1773611108095,0.07393924,72198.0,72187.0,0.041552]
[1773611108296,0.0014,72197.0,72187.0,0.041552]
[1773611108592,0.07533924,72197.0,72185.0,0.041553]
[1773611109194,0.07393924,72196.0,72183.0,0.0014]
[1773611110696,0.07393924,72192.0,72179.0,0.041556]
[1773611110891,0.07393924,72192.0,72161.0,0.08038109]
[1773611111086,0.0014,72197.0,72162.0,0.0014]
[1773611111087,0.041556,72181.0,72162.0,0.0014]
[1773611111289,0.07393924,72182.0,72171.0,0.041561]
[1773611111488,0.07393924,72182.0,72171.0,0.042961]
[1773611112085,0.07393924,72181.0,72168.0,0.041563]
[1773611112387,0.07393924,72178.0,72163.0,0.0014]
[1773611112587,0.07393924,72172.0,72160.0,0.041567]
[1773611112786,0.041562,72170.0,72159.0,0.0014]
[1773611112983,0.07393924,72168.0,72153.0,0.0014]
[1773611113189,0.041566,72164.0,72151.0,0.041572]
[1773611113390,0.0014,72165.0,72141.0,0.0014]
[1773611113696,0.0014,72168.0,72162.0,0.041566]
[1773611113994,0.041555,72182.0,72167.0,0.041563]
[1773611114194,0.042956,72181.0,72167.0,0.041563]
[1773611114394,0.041557,72180.0,72166.0,0.041564]
[1773611114582,0.041557,72180.0,72167.0,0.041563]
[1773611114790,0.041557,72179.0,72167.0,0.041563]
[1773611115290,0.07393924,72180.0,72168.0,0.041563]
[1773611115490,0.0014,72179.0,72168.0,0.041563]
[1773611115797,0.07393924,72180.0,72168.0,0.041563]
[1773611116185,0.07393924,72199.0,72175.0,0.08038109]
[1773611116387,0.07393924,72197.0,72185.0,0.041553]
[1773611116692,0.07393924,72197.0,72184.0,0.041553]
[1773611116889,0.0014,72200.0,72188.0,0.041551]
[1773611117088,0.07393924,72199.0,72187.0,0.041552]
[1773611117397,0.07393924,72199.0,72177.0,0.08038109]
[1773611117599,1e-06,72204.0,72180.0,0.08038109]
[1773611117804,1e-06,72204.0,72200.0,0.041544]
[1773611117987,0.0014,72212.0,72191.0,0.08038109]
[1773611118296,0.0014,72212.0,72190.0,0.0014]
[1773611118297,0.0014,72212.0,72206.0,0.041541]
[1773611118482,0.0014,72216.0,72198.0,0.08178109]
[1773611119484,0.041533,72220.0,72198.0,0.08178109]
[1773611119681,0.09341375,72227.0,72210.0,0.041538]
[1773611119682,0.041531,72224.0,72210.0,0.041538]
[1773611120085,0.0014,72223.0,72211.0,0.041538]
[1773611120293,0.0014,72224.0,72206.0,0.0014]
[1773611120494,0.0014,72224.0,72213.0,0.041537]
[1773611120798,0.0014,72224.0,72214.0,0.041536]
[1773611120992,0.042929,72227.0,72214.0,0.041536]
[1773611121298,0.042929,72227.0,72207.0,0.08038109]
[1773611121299,0.0014,72235.0,72215.0,0.08038109]
[1773611121498,0.07393924,72237.0,72216.0,0.0014]
[1773611121499,0.11546224,72237.0,72216.0,0.0014]
[1773611121800,0.11546224,72237.0,72216.0,0.08178109]
[1773611122198,0.11546224,72237.0,72222.0,0.041531]
[1773611122383,2.2e-07,72231.0,72227.0,0.041529]
[1773611122692,0.07670749,72231.0,72216.0,0.0014]
[1773611122894,0.07670727,72226.0,72192.0,0.07548922]
[1773611123095,0.041528,72229.0,72214.0,0.041536]
[1773611123296,0.11823527,72229.0,72215.0,0.041535]
[1773611123500,2.2e-07,72231.0,72223.0,0.041531]
[1773611124000,2.2e-07,72231.0,72225.0,0.04153]
[1773611124204,2.2e-07,72231.0,72223.0,0.041531]
[1773611124396,2.2e-07,72231.0,72224.0,0.04153]
[1773611124791,0.07670727,72240.0,72220.0,0.0014]
[1773611124993,0.07670727,72239.0,72220.0,0.0014]
[1773611125485,0.07670727,72239.0,72225.0,0.04153]
[1773611125692,0.07670727,72253.0,72225.0,0.07548922]
[1773611125996,0.041518,72246.0,72230.0,0.041527]
[1773611126193,0.07670727,72239.0,72225.0,0.04293]
[1773611126391,0.07670727,72234.0,72221.0,0.041532]
[1773611126905,0.0014,72236.0,72213.0,0.07548922]
[1773611127104,0.0941162,72255.0,72230.0,0.041527]
[1773611127105,0.0014,72244.0,72230.0,0.041527]
[1773611127299,0.041519,72245.0,72230.0,0.041527]
[1773611127495,0.0014,72245.0,72227.0,0.0014]
[1773611127794,0.041519,72244.0,72228.0,0.041528]
[1773611128102,0.07670727,72235.0,72224.0,0.0014]
[1773611128400,0.07670727,72232.0,72222.0,0.0014]
[1773611128607,0.041527,72230.0,72219.0,0.0014]
[1773611128802,0.07670727,72230.0,72215.0,0.0014]
[1773611128996,0.04153,72227.0,72214.0,0.042936]
[1773611129301,0.041528,72229.0,72215.0,0.041535]
[1773611129501,0.041529,72228.0,72215.0,0.041535]
[1773611129799,0.041529,72228.0,72214.0,0.0014]
[1773611129800,0.0014,72230.0,72214.0,0.0014]
[1773611130103,0.041519,72244.0,72215.0,0.07548922]
[1773611130304,0.04152,72243.0,72228.0,0.041528]
[1773611130502,0.04152,72243.0,72228.0,0.042928]
[1773611130704,0.11822627,72244.0,72228.0,0.0014]
[1773611130897,0.04152,72243.0,72229.0,0.041528]
[1773611131097,0.11822727,72243.0,72229.0,0.041528]
[1773611131407,0.07670727,72243.0,72228.0,0.0014]
[1773611131610,0.04152,72243.0,72230.0,0.041527]
[1773611132106,0.07670727,72242.0,72230.0,0.041527]
[1773611132400,0.17082347,72255.0,72228.0,0.07688922]
[1773611132602,0.041512,72257.0,72245.0,0.041518]
[1773611132794,0.0014,72259.0,72236.0,0.07548922]
[1773611132795,0.041513,72256.0,72243.0,0.041519]
[1773611132998,0.041513,72256.0,72240.0,0.0014]
[1773611132999,0.0014,72260.0,72240.0,0.07688922]
[1773611133304,0.0014,72261.0,72240.0,0.07688922]
[1773611133503,0.0014,72261.0,72241.0,0.07548922]
[1773611133891,0.041511,72258.0,72245.0,0.041519]
[1773611134204,0.07670727,72273.0,72250.0,0.07548922]
[1773611134398,0.041509,72262.0,72250.0,0.0014]
[1773611134705,0.041509,72262.0,72251.0,0.0014]
[1773611134905,0.041509,72262.0,72249.0,0.041516]
[1773611135110,0.041507,72266.0,72247.0,0.0014]
[1773611135308,0.07670727,72282.0,72256.0,0.07548922]
[1773611135497,0.041502,72274.0,72262.0,0.07548922]
[1773611135698,0.0014,72287.0,72264.0,0.07548922]
[1773611135997,0.07670727,72287.0,72267.0,0.041506]
[1773611136306,0.0014,72288.0,72268.0,0.07548922]
[1773611136700,0.07670727,72286.0,72267.0,0.0014]
[1773611136898,0.0014,72295.0,72243.0,0.041519]
[1773611137098,0.001,72281.0,72266.0,0.07548922]
[1773611137295,0.001,72281.0,72266.0,0.0014]
[1773611137802,0.07810727,72285.0,72266.0,0.0014]
[1773611138708,0.041497,72283.0,72266.0,0.07688922]
[1773611139117,0.0014,72285.0,72266.0,0.07688922]
[1773611139310,0.07670727,72277.0,72258.0,0.0014]
[1773611139500,0.11821227,72270.0,72257.0,0.0014]
[1773611139811,0.0014,72276.0,72255.0,0.0014]
[1773611139812,0.11821227,72269.0,72255.0,0.0014]
[1773611140207,0.07810727,72268.0,72255.0,0.0014]
[1773611140398,0.07670727,72262.0,72248.0,0.042916]
[1773611140597,0.04151,72261.0,72247.0,0.0014]
[1773611140908,0.08629433,72290.0,72258.0,0.07548922]
[1773611140909,0.07670727,72289.0,72258.0,0.07548922]
[1773611141211,0.041498,72281.0,72265.0,0.041507]
[1773611141407,0.041498,72281.0,72262.0,0.07548922]
[1773611141706,0.07670727,72294.0,72269.0,0.041505]
[1773611141907,0.041495,72286.0,72262.0,0.07548922]
[1773611142112,0.07670727,72287.0,72265.0,0.07688922]
[1773611142301,0.07670727,72287.0,72242.0,0.10033546]
[1773611142302,0.041506,72268.0,72253.0,0.041514]
[1773611142503,0.07670727,72267.0,72253.0,0.0014]
[1773611142703,0.041506,72268.0,72251.0,0.041515]
[1773611142704,0.07670727,72265.0,72252.0,0.0014]
[1773611142906,0.041511,72258.0,72234.0,0.07548922]
[1773611143106,0.07670727,72257.0,72236.0,0.07548922]
[1773611143314,0.041511,72258.0,72243.0,0.04152]
[1773611143607,0.041495,72287.0,72225.0,0.30484]
[1773611143608,0.041499,72280.0,72265.0,0.041507]
[1773611143904,0.1277821,72297.0,72262.0,0.01699722]
[1773611143905,0.0429,72279.0,72262.0,0.01699722]
[1773611144112,0.0415,72278.0,72262.0,0.01699722]
[1773611144697,0.041501,72276.0,72262.0,0.01699722]
[1773611145512,0.07670727,72279.0,72261.0,0.0014]
[1773611145900,0.0415,72279.0,72262.0,0.041509]
[1773611146102,0.041497,72284.0,72268.0,0.041505]
[1773611146297,0.0014,72284.0,72270.0,0.041504]
[1773611146511,0.07810727,72284.0,72270.0,0.041504]
[1773611146712,0.07670727,72280.0,72264.0,0.041507]
[1773611146904,0.07670727,72283.0,72261.0,0.042909]
[1773611147306,0.07670727,72275.0,72259.0,0.042911]
[1773611147505,0.07670727,72268.0,72246.0,0.07548922]
[1773611147718,0.07670727,72268.0,72241.0,0.10033546]
[1773611147719,0.07670727,72263.0,72249.0,0.041516]
[1773611147912,0.07670727,72261.0,72243.0,0.0014]
[1773611148108,0.0415,72279.0,72245.0,0.07548922]
[1773611148310,0.0014,72278.0,72264.0,0.041508]
[1773611148516,0.07670727,72278.0,72264.0,0.041508]
[1773611148813,0.0014,72279.0,72260.0,0.07688922]
[1773611149212,0.0014,72280.0,72269.0,0.041504]
[1773611149408,0.11820327,72285.0,72269.0,0.041504]
[1773611149409,0.0014,72284.0,72269.0,0.041504]
[1773611149615,0.0014,72284.0,72256.0,0.041512]
[1773611149817,0.0014,72284.0,72238.0,0.16252389]
[1773611149818,0.041497,72283.0,72243.0,0.0014]
[1773611150018,0.041505,72269.0,72254.0,0.041513]
[1773611150218,0.0014,72272.0,72261.0,0.041509]
[1773611150515,0.0429,72277.0,72262.0,0.041508]
[1773611150707,0.041497,72284.0,72263.0,0.07688922]
[1773611150911,0.041497,72282.0,72268.0,0.041505]
[1773611151522,0.07670727,72283.0,72269.0,0.041504]
[1773611151715,0.07670727,72283.0,72275.0,0.041501]
[1773611152018,0.07670727,72283.0,72266.0,0.0014]
[1773611152019,0.0014,72285.0,72266.0,0.07729333]
[1773611152521,0.07665114,72286.0,72272.0,0.041503]
[1773611152714,0.07765114,72284.0,72273.0,0.041502]
[1773611153023,0.07765114,72284.0,72245.0,0.041519]
[1773611153024,0.07665114,72283.0,72259.0,0.0014]
[1773611153314,0.001,72284.0,72255.0,0.0014]
[1773611153315,0.07765114,72265.0,72255.0,0.0014]
[1773611153516,0.07765114,72265.0,72254.0,0.0014]